bitfinex/quotes_SOLUSD_20251001
["timestamp","ask_amount","ask_price","bid_price","bid_amount"]
[1759300354278,5.58789619,208.86,208.8,60.31925882]
[1759300355092,0.8,208.86,208.8,60.31925882]
[1759300358990,0.8,208.86,208.8,71.62243889]
[1759300359181,0.8,208.86,208.81,0.67]
[1759300359182,0.1,208.86,208.81,0.67]
[1759300360584,0.1,208.86,208.82,4.78881333]
[1759300360785,0.1,208.86,208.83,34.71]
[1759300361412,0.1,208.86,208.83,34.04]
[1759300361590,0.1,208.86,208.84,0.67]
[1759300361973,0.1,208.86,208.85,37.34]
[1759300362578,0.1,208.86,208.85,71.38]
[1759300362785,0.1,208.86,208.85,72.05]
[1759300362996,0.1,208.86,208.85,71.38]
[1759300363801,0.1,208.86,208.85,76.83812544]
[1759300364186,0.1,208.86,208.85,76.16812544]
[1759300364697,0.1,208.86,208.85,76.83812544]
[1759300368415,0.1,208.86,208.85,81.9087714]
[1759300372692,0.1,208.86,208.85,46.91444826]
[1759300372892,0.8,208.86,208.85,71.36]
[1759300373100,0.8,208.86,208.85,37.34]
[1759300373319,0.8,208.86,208.85,71.36]
[1759300374713,5.58789619,208.86,208.85,71.36]
[1759300375412,5.58789619,208.86,208.85,37.34]
[1759300375605,5.58789619,208.86,208.85,71.36]
[1759300378591,0.8,208.86,208.85,71.36]
[1759300378809,5.58789619,208.86,208.85,71.36]
[1759300381135,32.84491049,208.86,208.77,37.34]
[1759300381299,2.3816798,208.85,208.84,37.34]
[1759300381499,2.3816798,208.85,208.84,71.34]
[1759300382305,13.59559401,208.82,208.73,4.00711809]
[1759300382513,13.59559401,208.82,208.7,18.38354075]
[1759300382514,1.40735666,208.78,208.7,18.38354075]
[1759300382707,0.69,208.77,208.7,14.37642266]
[1759300382913,13.73775558,208.8,208.67,4.00711809]
[1759300382914,15.69295067,208.76,208.67,4.00711809]
[1759300383113,0.69,208.75,208.67,4.00711809]
[1759300383405,0.69,208.74,208.66,0.71]
[1759300383620,0.69,208.74,208.68,34.0]
[1759300383923,0.69,208.73,208.68,34.0]
[1759300384520,5.4811077,208.72,208.68,34.0]
[1759300385618,4.79043482,208.75,208.69,0.71]
[1759300385824,0.69,208.74,208.7,34.02]
[1759300386010,0.69,208.73,208.71,34.02]
[1759300386211,0.69,208.73,208.72,34.02]
[1759300386527,5.48087816,208.73,208.72,34.02]
[1759300387626,17.45807357,208.73,208.64,4.72255571]
[1759300387810,14.28559401,208.72,208.65,0.71]
[1759300388010,14.28559401,208.72,208.66,34.02]
[1759300388227,0.69,208.71,208.66,34.02]
[1759300388527,0.69,208.7,208.66,34.02]
[1759300388723,0.69,208.69,208.66,34.02]
[1759300388925,0.69,208.68,208.66,34.02]
[1759300389226,14.38538444,208.7,208.6,6.13433757]
[1759300389419,0.69,208.68,208.62,0.71]
[1759300389805,5.48215226,208.68,208.63,37.34]
[1759300390108,5.48215226,208.68,208.64,34.02]
[1759300390109,0.69,208.68,208.64,34.02]
[1759300390321,22.34951823,208.74,208.64,34.02]
[1759300390322,0.69,208.67,208.64,34.02]
[1759300391032,0.69,208.69,208.64,34.02]
[1759300391209,0.69,208.68,208.64,34.02]
[1759300392419,5.4820713,208.68,208.64,34.02]
[1759300393514,14.38538444,208.7,208.65,0.71]
[1759300393826,5.48143049,208.71,208.66,0.71]
[1759300394131,5.48143049,208.71,208.67,34.02]
[1759300394826,0.69,208.7,208.67,34.02]
[1759300395825,5.4817403,208.7,208.67,34.02]
[1759300399121,4.7917403,208.7,208.67,34.02]
[1759300399625,19.17512811,208.72,208.68,0.66]
[1759300400031,19.83512811,208.72,208.67,34.02]
[1759300400223,0.66,208.71,208.67,34.02]
[1759300400756,5.45147131,208.71,208.67,34.02]
[1759300400924,5.45147131,208.71,208.67,34.68]
[1759300401247,14.38400498,208.72,208.67,39.47221969]
[1759300401416,77.04669587,208.73,208.67,39.47221969]
[1759300401618,91.43001122,208.73,208.67,39.47221969]
[1759300403537,77.17441721,208.73,208.68,0.69]
[1759300403745,58.0,208.73,208.69,0.69]
[1759300403924,58.0,208.73,208.7,34.0]
[1759300404238,5.4704208,208.75,208.7,34.69]
[1759300404539,5.4704208,208.75,208.71,0.69]
[1759300405713,0.68,208.74,208.7,38.79146983]
[1759300406236,4.7904208,208.75,208.7,39.48146983]
[1759300406464,5.4704208,208.75,208.7,39.48146983]
[1759300406637,0.68,208.75,208.7,39.48146983]
[1759300407138,0.68,208.75,208.71,0.69]
[1759300407518,0.68,208.77,208.72,0.69]
[1759300407719,0.68,208.77,208.73,34.0]
[1759300408443,0.68,208.76,208.73,34.0]
[1759300408740,5.47019717,208.76,208.73,34.0]
[1759300410819,5.46973081,208.78,208.73,34.0]
[1759300411017,0.68,208.77,208.73,34.0]
[1759300411943,5.4701748,208.77,208.73,34.0]
[1759300414135,4.78976455,208.78,208.73,34.69]
[1759300414338,5.46976455,208.78,208.74,0.69]
[1759300414736,19.16797501,208.8,208.75,0.69]
[1759300415046,21.48,208.81,208.76,34.69]
[1759300415047,26.26905127,208.81,208.76,34.69]
[1759300415547,25.58905127,208.81,208.76,34.69]
[1759300415722,0.68,208.8,208.76,34.69]
[1759300416338,0.68,208.8,208.76,34.0]
[1759300417048,0.68,208.8,208.76,34.69]
[1759300417642,5.46937828,208.8,208.76,34.0]
[1759300417844,5.46937828,208.8,208.76,34.69]
[1759300419529,5.46937828,208.8,208.76,34.0]
[1759300420046,4.78937828,208.8,208.77,0.69]
[1759300420527,4.78937828,208.8,208.76,34.0]
[1759300420727,0.68,208.79,208.76,34.0]
[1759300422353,5.46951259,208.79,208.76,34.0]
[1759300423038,4.78951259,208.79,208.76,34.69]
[1759300423743,4.7889926,208.82,208.77,0.69]
[1759300423940,0.68,208.81,208.76,34.0]
[1759300424141,0.68,208.8,208.76,34.0]
[1759300424450,4.78950141,208.79,208.76,34.0]
[1759300424847,0.68,208.78,208.76,34.0]
[1759300425060,0.68,208.77,208.69,4.70255571]
[1759300425354,0.68,208.77,208.68,93.10752978]
[1759300425355,14.27559401,208.76,208.7,33.98]
[1759300425561,0.68,208.75,208.7,33.98]
[1759300425863,13.59559401,208.73,208.68,74.72]
[1759300426155,0.68,208.72,208.69,33.96]
[1759300426542,4.79133726,208.71,208.69,33.96]
[1759300426734,25.85652643,208.75,208.69,33.96]
[1759300426735,25.57220329,208.75,208.69,33.96]
[1759300426937,0.68,208.74,208.69,33.96]
[1759300427152,0.68,208.73,208.69,33.96]
[1759300427933,4.79086912,208.74,208.69,34.65]
[1759300428128,26.25220329,208.75,208.69,34.65]
[1759300428129,25.59044996,208.75,208.7,0.69]
[1759300428334,4.79044996,208.75,208.71,0.69]
[1759300428643,13.59559401,208.77,208.72,34.65]
[1759300428644,4.79018969,208.76,208.72,34.65]
[1759300428845,5.47018969,208.76,208.72,33.96]
[1759300429632,0.68,208.75,208.72,33.96]
[1759300429853,0.68,208.74,208.72,33.96]
[1759300430741,5.47087816,208.73,208.72,33.96]
[1759300431335,4.79087816,208.73,208.72,33.96]
[1759300431737,5.47087816,208.73,208.72,33.96]
[1759300432050,31.04366758,208.73,208.72,33.96]
[1759300432253,19.06647217,208.73,208.72,33.96]
[1759300432554,5.47087816,208.73,208.72,33.96]
[1759300432738,4.79066011,208.74,208.72,33.96]
[1759300433776,5.47066011,208.74,208.72,33.96]
[1759300435741,4.79066011,208.74,208.72,33.96]
[1759300436676,13.59559401,208.76,208.72,34.62]
[1759300437052,19.06586575,208.76,208.72,33.96]
[1759300437268,19.06586575,208.76,208.73,37.36]
[1759300437477,0.68,208.76,208.73,37.36]
[1759300437653,62.7900092,208.77,208.73,37.36]
[1759300437976,0.68,208.76,208.73,37.36]
[1759300438348,62.7900092,208.77,208.73,37.36]
[1759300438677,63.4700092,208.77,208.73,37.36]
[1759300439671,0.68,208.76,208.73,37.36]
[1759300439873,0.68,208.75,208.73,37.36]
[1759300440380,74.7649098,208.77,208.73,37.36]
[1759300440561,75.4449098,208.77,208.73,37.36]
[1759300441081,4.7900092,208.77,208.73,38.02]
[1759300441384,5.4700092,208.77,208.73,37.36]
[1759300441762,0.68,208.76,208.73,37.36]
[1759300442280,4.7900092,208.77,208.73,37.36]
[1759300442462,5.4700092,208.77,208.73,37.36]
[1759300443872,5.4700092,208.77,208.73,38.02]
[1759300444068,5.4700092,208.77,208.73,37.36]
[1759300444762,5.4700092,208.77,208.73,38.02]
[1759300445561,4.78929278,208.8,208.74,0.66]
[1759300445757,0.68,208.79,208.75,33.94]
[1759300445973,4.78929278,208.8,208.75,33.94]
[1759300446176,0.68,208.79,208.75,33.94]
[1759300446782,0.68,208.79,208.75,34.6]
[1759300446978,4.78929278,208.8,208.75,34.6]
[1759300447180,5.46929278,208.8,208.75,34.6]
[1759300447372,20.8,208.84,208.76,0.66]
[1759300447573,2.20391305,208.87,208.76,0.66]
[1759300447574,0.68,208.85,208.77,4.78996024]
[1759300447774,0.68,208.85,208.78,33.94]
[1759300447968,0.68,208.85,208.79,0.66]
[1759300449294,4.78838832,208.84,208.79,0.66]
[1759300449470,5.46838832,208.84,208.79,0.66]
[1759300451968,0.68,208.83,208.79,0.66]
[1759300454289,4.78881333,208.82,208.78,33.94]
[1759300454592,13.59559401,208.8,208.79,33.94]
[1759300454895,14.27559401,208.8,208.79,33.92]
[1759300456392,19.06486604,208.8,208.79,33.92]
[1759300459599,33.24195916,208.8,208.73,37.36]
[1759300459793,13.59559401,208.78,208.74,33.92]
[1759300460195,0.66,208.77,208.74,33.92]
[1759300460377,0.66,208.76,208.74,33.92]
[1759300460578,14.25559401,208.75,208.74,33.92]
[1759300460783,14.53991715,208.75,208.74,33.92]
[1759300460980,19.33033631,208.75,208.74,33.92]
[1759300462098,19.04601317,208.75,208.74,33.92]
[1759300462294,4.79041916,208.75,208.74,33.92]
[1759300463497,0.28432314,208.73,208.71,37.36]
[1759300463806,0.94432314,208.72,208.71,37.36]
[1759300463993,0.94432314,208.72,208.71,71.28]
[1759300464982,0.28432314,208.72,208.71,71.28]
[1759300465184,13.59559401,208.73,208.71,71.28]
[1759300465494,13.59559401,208.74,208.71,71.28]
[1759300465681,0.66,208.73,208.71,71.28]
[1759300465888,35.05559401,208.72,208.71,37.36]
[1759300466086,35.05559401,208.72,208.71,71.28]
[1759300466895,93.05559401,208.72,208.71,71.28]
[1759300467096,92.39559401,208.72,208.71,71.28]
[1759300467295,97.18670171,208.72,208.71,71.28]
[1759300469302,98.13102485,208.72,208.71,71.28]
[1759300469608,98.13102485,208.72,208.69,37.36]
[1759300469609,13.87991715,208.71,208.69,37.36]
[1759300469911,13.87991715,208.71,208.7,33.92]
[1759300470407,14.53991715,208.71,208.7,33.92]
[1759300470987,16.7438302,208.71,208.7,33.92]
[1759300471189,21.53516746,208.71,208.7,33.92]
[1759300471612,35.92262159,208.71,208.7,33.92]
[1759300472604,35.92262159,208.71,208.69,37.36]
[1759300472913,34.39559401,208.68,208.61,0.72]
[1759300473096,36.59950706,208.68,208.62,37.36]
[1759300473298,0.66,208.67,208.62,37.36]
[1759300473492,36.59950706,208.68,208.62,37.36]
[1759300473493,0.66,208.66,208.62,37.36]
[1759300473696,35.05559401,208.68,208.63,33.92]
[1759300473894,0.66,208.67,208.63,33.92]
[1759300474214,48.78373817,208.68,208.63,33.92]
[1759300474215,48.78373817,208.68,208.63,34.64]
[1759300474516,49.44373817,208.68,208.63,34.64]
[1759300474714,16.77289499,208.67,208.63,34.64]
[1759300474920,13.59559401,208.66,208.63,34.64]
[1759300476203,4.79271507,208.65,208.63,34.64]
[1759300477417,4.79271507,208.65,208.63,33.92]
[1759300478310,18.38807939,208.66,208.63,33.92]
[1759300479425,62.79228325,208.67,208.64,0.72]
[1759300479618,62.79228325,208.67,208.65,33.92]
[1759300489931,58.0,208.67,208.66,0.72]
[1759300490108,13.59559401,208.7,208.66,0.72]
[1759300490109,4.79180216,208.69,208.66,0.72]
[1759300490308,13.59559401,208.7,208.67,33.9]
[1759300490523,57.8,208.71,208.67,34.62]
[1759300490723,5.45159437,208.7,208.67,33.9]
[1759300491936,17.43051147,208.7,208.67,33.9]
[1759300492233,16.77051147,208.7,208.67,33.9]
[1759300493034,16.77051147,208.7,208.68,37.36]
[1759300493216,4.79159437,208.7,208.68,37.36]
[1759300493716,5.46159437,208.7,208.68,37.36]
[1759300493917,4.79159437,208.7,208.68,37.36]
[1759300495325,4.79159437,208.7,208.69,33.9]
[1759300497740,13.59559401,208.73,208.69,33.9]
[1759300497741,0.67,208.76,208.69,39.40171316]
[1759300497910,0.67,208.76,208.7,0.71]
[1759300498235,17.43587975,208.76,208.71,33.9]
[1759300498428,0.67,208.75,208.71,33.9]
[1759300498746,0.67,208.75,208.71,34.61]
[1759300499214,4.79040553,208.76,208.72,0.71]
[1759300499414,4.79040553,208.76,208.69,4.79177364]
[1759300499415,4.79040553,208.76,208.73,34.61]
[1759300499742,4.79040553,208.76,208.74,33.9]
[1759300499911,14.26559401,208.76,208.74,33.9]
[1759300500312,0.67,208.8,208.74,38.69060979]
[1759300500516,0.67,208.8,208.75,0.71]
[1759300500737,13.59559401,208.78,208.69,4.72255571]
[1759300501043,13.59559401,208.78,208.7,33.9]
[1759300501044,13.59559401,208.76,208.7,33.9]
[1759300501237,14.26559401,208.76,208.7,34.61]
[1759300502749,4.79041916,208.75,208.7,34.61]
[1759300502931,17.43646706,208.75,208.7,33.9]
[1759300503137,0.67,208.74,208.7,33.9]
[1759300503319,0.67,208.73,208.7,33.9]
[1759300503642,17.43646706,208.75,208.7,34.61]
[1759300503829,0.67,208.74,208.7,34.61]
[1759300504022,0.67,208.74,208.7,33.9]
[1759300504424,16.76646706,208.75,208.7,34.61]
[1759300504624,0.67,208.74,208.7,34.61]
[1759300505140,20.8,208.79,208.71,0.71]
[1759300505445,18.38530612,208.79,208.71,0.71]
[1759300505643,13.59559401,208.78,208.71,0.71]
[1759300506129,14.26559401,208.78,208.71,0.71]
[1759300506726,14.26559401,208.78,208.69,4.01255571]
[1759300506929,13.59559401,208.75,208.72,33.88]
[1759300507138,0.67,208.74,208.72,33.88]
[1759300507324,16.76566391,208.76,208.72,33.88]
[1759300507325,0.67,208.73,208.72,33.88]
[1759300508543,13.59559401,208.75,208.72,33.88]
[1759300508752,0.67,208.74,208.72,33.88]
[1759300509245,4.79087816,208.73,208.72,33.88]
[1759300510025,19.05647217,208.73,208.72,33.88]
[1759300510946,18.38647217,208.73,208.72,33.88]
[1759300513149,4.79087816,208.73,208.72,33.88]
[1759300513528,4.79064865,208.74,208.72,33.88]
[1759300516454,0.67,208.73,208.72,33.88]
[1759300517451,14.26559401,208.73,208.72,33.88]
[1759300517639,15.96055642,208.73,208.72,33.88]
[1759300518141,20.75143458,208.73,208.72,33.88]
[1759300521934,19.34079531,208.73,208.72,33.88]
[1759300524546,0.28432314,208.72,208.68,37.36]
[1759300524756,15.29055642,208.72,208.68,37.36]
[1759300525056,13.59559401,208.7,208.68,37.36]
[1759300525642,18.38716085,208.7,208.69,33.86]
[1759300527938,19.10716085,208.7,208.69,33.86]
[1759300528559,13.59559401,208.67,208.66,37.36]
[1759300528866,15.72623328,208.67,208.66,71.22]
[1759300529736,14.31559401,208.67,208.66,71.22]
[1759300530454,19.10784972,208.67,208.66,71.22]
[1759300531940,18.38784972,208.67,208.66,71.22]
[1759300532347,19.10784972,208.67,208.66,71.22]
[1759300532741,4.79225571,208.67,208.66,71.94]
[1759300534540,4.79202606,208.68,208.66,71.94]
[1759300536460,4.79202606,208.68,208.66,71.22]
[1759300541842,14.31559401,208.67,208.66,37.36]
[1759300542168,28.70373817,208.67,208.66,71.22]
[1759300542373,27.98373817,208.67,208.66,71.22]
[1759300542940,4.79202606,208.68,208.66,71.22]
[1759300543460,5.51202606,208.68,208.66,71.22]
[1759300543977,4.79202606,208.68,208.66,71.22]
[1759300544583,14.31559401,208.67,208.66,37.36]
[1759300544749,14.31559401,208.67,208.66,71.2]
[1759300544951,28.98806131,208.67,208.66,71.2]
[1759300545746,33.78031702,208.67,208.66,71.2]
[1759300547155,45.7609563,208.67,208.66,37.38]
[1759300547473,47.17159557,208.67,208.66,37.38]
[1759300548180,0.28432314,208.66,208.65,37.38]
[1759300548475,14.59991715,208.66,208.65,71.22]
[1759300549679,13.59559401,208.66,208.65,71.94]
[1759300549851,16.77289499,208.67,208.65,71.94]
[1759300550054,16.77289499,208.67,208.66,0.72]
[1759300550258,16.77289499,208.67,208.65,71.22]
[1759300551467,31.16034912,208.67,208.65,71.22]
[1759300553183,31.16034912,208.67,208.65,71.94]
[1759300553184,16.77289499,208.67,208.65,71.94]
[1759300553359,16.77289499,208.67,208.65,71.22]
[1759300553875,16.77289499,208.67,208.65,71.92]
[1759300554096,16.77289499,208.67,208.65,71.22]
[1759300554285,14.30559401,208.66,208.65,37.38]
[1759300554487,0.28432314,208.65,208.62,37.38]
[1759300554789,13.87991715,208.62,208.61,37.38]
[1759300555082,16.79475873,208.62,208.61,71.22]
[1759300555876,31.18704446,208.62,208.61,71.22]
[1759300556764,35.98044873,208.62,208.61,71.22]
[1759300557180,35.27044873,208.62,208.61,71.22]
[1759300557378,35.98044873,208.62,208.61,71.22]
[1759300563582,47.96395941,208.62,208.6,37.38]
[1759300563783,0.99432314,208.61,208.6,37.38]
[1759300564174,0.28432314,208.58,208.56,1e-08]
[1759300564499,18.39014739,208.57,208.56,1e-08]
[1759300564875,20.30939504,208.57,208.56,16.00000001]
[1759300565364,20.30939504,208.57,208.56,16.70000001]
[1759300566412,1.91924765,208.57,208.56,16.70000001]
[1759300566704,13.59559401,208.62,208.56,16.70000001]
[1759300567001,13.59559401,208.62,208.57,0.7]
[1759300567209,4.79317451,208.63,208.57,0.7]
[1759300567496,25.59317451,208.63,208.57,0.7]
[1759300568291,14.39021465,208.65,208.57,17.4808185]
[1759300568596,53.5750742,208.68,208.58,0.7]
[1759300568971,66.26513937,208.68,208.58,0.7]
[1759300569907,66.26513937,208.68,208.59,37.38]
[1759300570073,0.71,208.67,208.6,34.54]
[1759300570476,16.77369883,208.66,208.61,0.7]
[1759300570686,16.77369883,208.66,208.62,0.7]
[1759300570990,4.79228088,208.67,208.63,0.7]
[1759300571196,4.79199176,208.69,208.64,33.84]
[1759300571382,4.79199176,208.69,208.65,0.7]
[1759300572098,4.79133726,208.71,208.66,0.7]
[1759300572286,0.71,208.76,208.66,0.7]
[1759300572477,27.97821979,208.75,208.66,0.7]
[1759300572677,28.68821979,208.75,208.66,0.7]
[1759300573175,45.45517432,208.75,208.66,5.49246767]
[1759300573375,45.45517432,208.75,208.67,0.7]
[1759300574110,4.79013373,208.77,208.67,0.7]
[1759300574602,4.79013373,208.77,208.68,20.8]
[1759300574802,2.20484158,208.75,208.69,33.82]
[1759300574970,13.59559401,208.7,208.69,33.82]
[1759300575174,14.30559401,208.7,208.69,71.2]
[1759300575388,21.30200243,208.7,208.69,71.2]
[1759300576501,19.09716085,208.7,208.69,71.2]
[1759300576882,33.48323513,208.7,208.69,71.2]
[1759300577702,5.50156684,208.7,208.69,71.2]
[1759300577995,7.70640842,208.7,208.69,71.2]
[1759300578800,4.79156684,208.7,208.69,71.2]
[1759300578975,7.68640842,208.7,208.69,37.38]
[1759300579175,35.66807671,208.7,208.69,71.2]
[1759300579691,93.36807671,208.7,208.69,71.2]
[1759300580404,91.16323513,208.7,208.69,71.2]
[1759300581410,90.47323513,208.7,208.69,71.2]
[1759300581606,76.08716085,208.7,208.69,71.2]
[1759300584503,62.49156684,208.7,208.69,71.2]
[1759300585582,18.3857837,208.76,208.69,71.9]
[1759300585897,4.79018969,208.76,208.7,0.7]
[1759300586099,4.79018969,208.76,208.71,33.82]
[1759300586296,4.79018969,208.76,208.72,0.7]
[1759300586490,4.78996024,208.77,208.73,33.82]
[1759300586687,4.78996024,208.77,208.73,34.52]
[1759300586890,4.78996024,208.77,208.73,33.82]
[1759300587408,4.78996024,208.77,208.73,34.52]
[1759300589382,4.78996024,208.77,208.73,33.82]
[1759300589591,4.78996024,208.77,208.74,0.7]
[1759300590011,4.78996024,208.77,208.73,33.82]
[1759300590189,4.78996024,208.77,208.73,34.52]
[1759300592408,4.78996024,208.77,208.73,33.82]
[1759300592610,4.78996024,208.77,208.74,0.7]
[1759300592805,4.78927203,208.8,208.73,33.82]
[1759300592996,4.78927203,208.8,208.75,0.7]
[1759300593204,4.78927203,208.8,208.76,33.8]
[1759300593596,4.78927203,208.8,208.76,34.5]
[1759300597020,4.78927203,208.8,208.76,33.8]
[1759300597021,0.68,208.79,208.76,33.8]
[1759300597708,4.78973081,208.78,208.76,33.8]
[1759300599226,0.68,208.77,208.71,0.7]
[1759300599440,0.68,208.77,208.72,33.8]
[1759300599619,0.68,208.77,208.72,34.5]
[1759300599926,4.79018969,208.76,208.72,34.5]
[1759300601328,0.68,208.75,208.69,37.38]
[1759300601659,13.59559401,208.75,208.7,34.5]
[1759300601831,4.79064865,208.74,208.71,0.7]
[1759300602322,4.79064865,208.74,208.7,33.8]
[1759300602617,4.79064865,208.74,208.7,34.5]
[1759300603526,14.27559401,208.73,208.7,33.8]
[1759300603711,0.68,208.72,208.7,33.8]
[1759300603908,4.7911077,208.72,208.7,33.8]
[1759300604812,4.7911077,208.72,208.7,34.5]
[1759300605018,4.7911077,208.72,208.7,33.8]
[1759300606849,0.68,208.71,208.7,33.8]
[1759300607131,4.7911077,208.72,208.7,33.8]
[1759300607300,4.79018969,208.76,208.71,0.7]
[1759300607505,4.79018969,208.76,208.72,0.7]
[1759300607830,4.79018969,208.76,208.73,34.48]
[1759300608033,4.79018969,208.76,208.74,33.78]
[1759300609426,11.97497424,208.77,208.74,33.78]
[1759300610127,12.65497424,208.77,208.74,33.78]
[1759300610624,11.97497424,208.77,208.74,33.78]
[1759300610805,14.27559401,208.76,208.74,33.78]
[1759300611008,13.59559401,208.76,208.74,33.78]
[1759300611210,4.79041916,208.75,208.74,33.78]
[1759300613225,11.97497424,208.77,208.74,33.78]
[1759300613429,11.97497424,208.77,208.74,34.46]
[1759300613430,4.78996024,208.77,208.74,34.46]
[1759300615531,4.78973081,208.78,208.74,33.78]
[1759300615719,4.78973081,208.78,208.74,34.46]
[1759300616819,4.78973081,208.78,208.75,0.68]
[1759300617129,4.78973081,208.78,208.76,0.68]
[1759300617334,4.78973081,208.78,208.74,33.78]
[1759300617529,4.78950141,208.79,208.74,34.46]
[1759300618036,4.78950141,208.79,208.75,0.68]
[1759300618414,5.48950141,208.79,208.75,0.68]
[1759300619117,4.78950141,208.79,208.75,0.68]
[1759300619317,16.76289083,208.8,208.75,0.68]
[1759300619517,17.46289083,208.8,208.75,0.68]
[1759300619717,0.7,208.79,208.75,0.68]
[1759300620644,0.7,208.79,208.74,33.78]
[1759300620825,0.7,208.79,208.74,34.46]
[1759300621341,4.78973081,208.78,208.74,34.46]
[1759300624023,0.7,208.79,208.74,34.46]
[1759300625227,5.48958567,208.79,208.74,34.46]
[1759300627941,5.48958567,208.79,208.75,0.68]
[1759300628144,5.48958567,208.79,208.74,33.78]
[1759300628320,5.48958567,208.79,208.74,34.46]
[1759300628843,5.48958567,208.79,208.75,0.68]
[1759300629345,4.78927203,208.8,208.75,0.68]
[1759300629841,5.48927203,208.8,208.76,0.68]
[1759300630040,5.48927203,208.8,208.74,33.78]
[1759300630041,20.8,208.83,208.74,38.57064508]
[1759300630244,5.48881333,208.82,208.77,0.68]
[1759300630428,5.48881333,208.82,208.78,33.76]
[1759300630743,0.7,208.81,208.79,33.76]
[1759300630945,4.78881333,208.82,208.79,33.76]
[1759300631540,5.48881333,208.82,208.79,33.76]
[1759300632925,0.7,208.81,208.8,37.34]
[1759300633553,4.78881333,208.82,208.8,37.34]
[1759300633754,5.48881333,208.82,208.8,37.34]
[1759300634551,0.7,208.81,208.8,37.34]
[1759300634730,4.78881333,208.82,208.8,37.34]
[1759300634931,5.48881333,208.82,208.8,37.34]
[1759300638249,4.78881333,208.82,208.8,37.34]
[1759300638453,4.78881333,208.82,208.8,38.02]
[1759300639434,4.78858401,208.83,208.8,37.34]
[1759300639748,5.50858401,208.83,208.8,37.34]
[1759300641251,4.78858401,208.83,208.8,37.34]
[1759300641548,4.78858401,208.83,208.81,33.76]
[1759300641752,0.1,208.86,208.81,34.47]
[1759300641938,0.1,208.86,208.82,0.71]
[1759300642142,0.1,208.86,208.8,42.1292578]
[1759300642143,0.1,208.86,208.83,34.47]
[1759300642343,0.1,208.86,208.84,33.76]
[1759300642551,0.1,208.86,208.84,34.47]
[1759300643533,0.1,208.86,208.84,0.71]
[1759300643847,0.1,208.86,208.85,33.76]
[1759300644226,0.1,208.86,208.85,34.47]
[1759300648454,0.1,208.86,208.85,33.76]
[1759300649537,0.1,208.86,208.85,34.47]
[1759300649943,0.1,208.86,208.85,33.76]
[1759300654965,0.78,208.86,208.8,38.05]
[1759300655172,15.00526098,208.84,208.8,37.34]
[1759300655344,13.59559401,208.81,208.8,37.34]
[1759300655665,13.59559401,208.81,208.8,71.08]
[1759300655666,19.06463668,208.81,208.8,71.08]
[1759300656066,20.47430365,208.81,208.8,71.08]
[1759300656754,13.59559401,208.77,208.76,37.34]
[1759300656943,14.27559401,208.77,208.76,74.68]
[1759300657562,19.06555425,208.77,208.76,74.68]
[1759300657766,19.06555425,208.77,208.76,108.42]
[1759300658266,4.78996024,208.77,208.76,108.42]
[1759300659962,4.78973081,208.78,208.76,108.42]
[1759300660248,5.46973081,208.78,208.76,108.42]
[1759300664068,13.59559401,208.75,208.72,37.34]
[1759300664272,14.27559401,208.74,208.73,33.74]